[Event "Open NK Rapid 2025"]
[Site "Helmond, Netherlands"]
[Date "2025.05.03"]
[Round "1.7"]
[White "Schneider, Ilja"]
[Black "Van Geffen, Johnny"]
[Result "1-0"]
[TimeControl "15+5"]
[WhiteFideId "4663306"]
[BlackFideId "40104605"]
[WhiteElo "2438"]
[BlackElo "1777"]

1. e4 {[%clk 00:15:08]} {[%emt 00:00:01]} c5 {[%clk 00:15:08]} {[%emt
00:00:03]} 2. Nc3 {[%clk 00:15:12]} {[%emt 00:00:01]} e6 {[%clk 00:15:08]}
{[%emt 00:00:04]} 3. Nf3 {[%clk 00:15:15]} {[%emt 00:00:01]} Nc6 {[%clk
00:15:08]} {[%emt 00:00:05]} 4. Bb5 {[%clk 00:15:19]} {[%emt 00:00:01]} a6
{[%clk 00:14:59]} {[%emt 00:00:15]} 5. Bxc6 {[%clk 00:15:21]} {[%emt 00:00:02]}
dxc6 {[%clk 00:15:00]} {[%emt 00:00:04]} 6. O-O {[%clk 00:15:16]} {[%emt
00:00:10]} Nf6 {[%clk 00:15:00]} {[%emt 00:00:06]} 7. e5 {[%clk 00:15:03]}
{[%emt 00:00:18]} Nd5 {[%clk 00:14:59]} {[%emt 00:00:05]} 8. Ne4 {[%clk
00:15:06]} {[%emt 00:00:01]} Be7 {[%clk 00:14:54]} {[%emt 00:00:11]} 9. c4
{[%clk 00:14:56]} {[%emt 00:00:15]} Nc7 {[%clk 00:14:37]} {[%emt 00:00:22]} 10.
d3 {[%clk 00:14:44]} {[%emt 00:00:18]} h6 {[%clk 00:13:37]} {[%emt 00:01:04]}
11. Be3 {[%clk 00:14:47]} {[%emt 00:00:01]} b6 {[%clk 00:13:41]} {[%emt
00:00:02]} 12. b4 {[%clk 00:14:36]} {[%emt 00:00:16]} cxb4 {[%clk 00:13:21]}
{[%emt 00:00:26]} 13. Bxb6 {[%clk 00:14:40]} Rb8 {[%clk 00:13:01]} {[%emt
00:00:24]} 14. Bc5 {[%clk 00:14:17]} {[%emt 00:00:28]} Bxc5 {[%clk 00:12:43]}
{[%emt 00:00:23]} 15. Nxc5 {[%clk 00:14:21]} O-O {[%clk 00:12:30]} {[%emt
00:00:19]} 16. Qa4 {[%clk 00:14:15]} {[%emt 00:00:10]} Qe8 {[%clk 00:12:19]}
{[%emt 00:00:16]} 17. Rab1 {[%clk 00:14:02]} {[%emt 00:00:18]} f5 {[%clk
00:12:03]} {[%emt 00:00:21]} 18. Rxb4 {[%clk 00:13:49]} {[%emt 00:00:18]} Rxb4
{[%clk 00:12:05]} {[%emt 00:00:03]} 19. Qxb4 {[%clk 00:13:53]} Qe7 {[%clk
00:12:08]} {[%emt 00:00:02]} 20. d4 {[%clk 00:13:29]} {[%emt 00:00:30]} Rf7
{[%clk 00:10:28]} {[%emt 00:01:44]} 21. Nd3 {[%clk 00:12:32]} {[%emt 00:01:02]}
g5 {[%clk 00:09:31]} {[%emt 00:01:02]} 22. Qxe7 {[%clk 00:12:31]} {[%emt
00:00:06]} Rxe7 {[%clk 00:09:34]} {[%emt 00:00:01]} 23. Nc5 {[%clk 00:12:35]}
{[%emt 00:00:02]} Kf7 {[%clk 00:09:06]} {[%emt 00:00:33]} 24. Rb1 {[%clk
00:12:38]} {[%emt 00:00:03]} Ke8 {[%clk 00:07:21]} {[%emt 00:01:49]} 25. Rb8
{[%clk 00:12:37]} {[%emt 00:00:05]} Kd8 {[%clk 00:07:18]} {[%emt 00:00:08]} 26.
Nb7+ {[%clk 00:12:38]} {[%emt 00:00:05]} Kd7 {[%clk 00:07:15]} {[%emt
00:00:08]} 27. Nd6 {[%clk 00:12:42]} {[%emt 00:00:01]} Re8 {[%clk 00:07:10]}
{[%emt 00:00:11]} 28. Nxe8 {[%clk 00:12:44]} {[%emt 00:00:02]} Nxe8 {[%clk
00:07:13]} {[%emt 00:00:02]} 29. Ne1 {[%clk 00:12:40]} {[%emt 00:00:09]} Kc7
{[%clk 00:06:47]} {[%emt 00:00:31]} 30. Rb2 {[%clk 00:12:43]} {[%emt 00:00:02]}
a5 {[%clk 00:06:40]} {[%emt 00:00:12]} 31. Nd3 {[%clk 00:12:47]} Ba6 {[%clk
00:06:34]} {[%emt 00:00:12]} 32. Rc2 {[%clk 00:12:43]} {[%emt 00:00:09]} Ng7
{[%clk 00:06:23]} {[%emt 00:00:15]} 33. Nc5 {[%clk 00:12:46]} {[%emt 00:00:02]}
Bc8 {[%clk 00:06:21]} {[%emt 00:00:07]} 34. d5 {[%clk 00:12:46]} {[%emt
00:00:05]} exd5 {[%clk 00:05:30]} {[%emt 00:00:57]} 35. cxd5 {[%clk 00:12:50]}
{[%emt 00:00:01]} Ne8 {[%clk 00:04:03]} {[%emt 00:01:31]} 36. d6+ {[%clk
00:12:52]} {[%emt 00:00:03]} Kd8 {[%clk 00:04:01]} {[%emt 00:00:07]} 37. d7
{[%clk 00:12:52]} {[%emt 00:00:05]} Bxd7 {[%clk 00:04:02]} {[%emt 00:00:04]} 38.
Rd2 {[%clk 00:12:56]} {[%emt 00:00:01]} 1-0

[Event "Open NK Rapid 2025"]
[Site "Helmond, Netherlands"]
[Date "2025.05.03"]
[Round "1.8"]
[White "Verhoeven, Lars"]
[Black "Baselmans, Luuk"]
[Result "0-1"]
[TimeControl "15+5"]
[WhiteFideId "1098519"]
[BlackFideId "1051008"]
[WhiteElo "1775"]
[BlackElo "2405"]

1. c4 {[%clk 00:15:07]} {[%emt 00:00:02]} e5 {[%clk 00:15:07]} {[%emt
00:00:04]} 2. Nc3 {[%clk 00:15:11]} {[%emt 00:00:02]} Nf6 {[%clk 00:15:10]}
{[%emt 00:00:02]} 3. g3 {[%clk 00:15:15]} {[%emt 00:00:01]} c6 {[%clk
00:15:09]} {[%emt 00:00:05]} 4. Nf3 {[%clk 00:15:18]} {[%emt 00:00:02]} e4
{[%clk 00:15:12]} {[%emt 00:00:02]} 5. Nd4 {[%clk 00:15:22]} {[%emt 00:00:01]}
Qb6 {[%clk 00:15:14]} {[%emt 00:00:03]} 6. Nb3 {[%clk 00:15:15]} {[%emt
00:00:12]} a5 {[%clk 00:15:16]} {[%emt 00:00:03]} 7. d3 {[%clk 00:14:38]}
{[%emt 00:00:41]} a4 {[%clk 00:14:35]} {[%emt 00:00:46]} 8. Nd2 {[%clk
00:13:32]} {[%emt 00:01:12]} a3 {[%clk 00:13:22]} {[%emt 00:01:18]} 9. Qb3
{[%clk 00:11:34]} {[%emt 00:02:03]} Qxb3 {[%clk 00:12:28]} {[%emt 00:00:59]} 10.
Nxb3 {[%clk 00:11:35]} {[%emt 00:00:04]} Bb4 {[%clk 00:11:46]} {[%emt
00:00:47]} 11. Nd2 {[%clk 00:10:44]} {[%emt 00:00:56]} exd3 {[%clk 00:11:07]}
{[%emt 00:00:44]} 12. exd3 {[%clk 00:10:43]} {[%emt 00:00:06]} O-O {[%clk
00:11:07]} {[%emt 00:00:05]} 13. Bh3 {[%clk 00:08:24]} {[%emt 00:02:25]} Re8+
{[%clk 00:10:27]} {[%emt 00:00:44]} 14. Kf1 {[%clk 00:08:25]} {[%emt 00:00:04]}
Na6 {[%clk 00:09:28]} {[%emt 00:01:03]} 15. d4 {[%clk 00:07:56]} {[%emt
00:00:35]} d5 {[%clk 00:08:46]} {[%emt 00:00:46]} 16. cxd5 {[%clk 00:07:22]}
{[%emt 00:00:40]} Bxh3+ {[%clk 00:08:47]} {[%emt 00:00:04]} 0-1

[Event "Open NK Rapid 2025"]
[Site "Helmond, Netherlands"]
[Date "2025.05.03"]
[Round "1.9"]
[White "Roebers, Eline"]
[Black "Rohatgi, Kushagra"]
[Result "1-0"]
[TimeControl "15+5"]
[WhiteFideId "1058401"]
[BlackFideId "34603212"]
[WhiteElo "2390"]
[BlackElo "1774"]

1. e4 {[%clk 00:15:08]} {[%emt 00:00:01]} c6 {[%clk 00:15:08]} {[%emt
00:00:03]} 2. Nf3 {[%clk 00:15:11]} {[%emt 00:00:02]} d5 {[%clk 00:15:12]}
{[%emt 00:00:01]} 3. Nc3 {[%clk 00:15:16]} dxe4 {[%clk 00:15:15]} {[%emt
00:00:01]} 4. Nxe4 {[%clk 00:15:20]} Nf6 {[%clk 00:15:19]} {[%emt 00:00:01]} 5.
Qe2 {[%clk 00:15:24]} {[%emt 00:00:01]} Nxe4 {[%clk 00:15:16]} {[%emt
00:00:07]} 6. Qxe4 {[%clk 00:15:28]} {[%emt 00:00:01]} Qd5 {[%clk 00:15:15]}
{[%emt 00:00:06]} 7. Qf4 {[%clk 00:15:29]} {[%emt 00:00:03]} e6 {[%clk
00:13:52]} {[%emt 00:01:28]} 8. Bc4 {[%clk 00:15:18]} {[%emt 00:00:17]} Qd7
{[%clk 00:13:15]} {[%emt 00:00:42]} 9. d4 {[%clk 00:15:04]} {[%emt 00:00:19]}
b5 {[%clk 00:12:33]} {[%emt 00:00:47]} 10. Bd3 {[%clk 00:14:55]} {[%emt
00:00:15]} Ba6 {[%clk 00:11:53]} {[%emt 00:00:44]} 11. O-O {[%clk 00:14:48]}
{[%emt 00:00:11]} b4 {[%clk 00:11:30]} {[%emt 00:00:29]} 12. Rd1 {[%clk
00:14:51]} {[%emt 00:00:02]} Bxd3 {[%clk 00:11:20]} {[%emt 00:00:15]} 13. Rxd3
{[%clk 00:14:54]} Na6 {[%clk 00:10:53]} {[%emt 00:00:32]} 14. Qg3 {[%clk
00:14:11]} {[%emt 00:00:49]} h6 {[%clk 00:10:23]} {[%emt 00:00:35]} 15. Bf4
{[%clk 00:14:05]} {[%emt 00:00:11]} Rc8 {[%clk 00:09:31]} {[%emt 00:00:56]} 16.
Ne5 {[%clk 00:14:04]} {[%emt 00:00:07]} Qb7 {[%clk 00:09:04]} {[%emt 00:00:32]}
17. Nc4 {[%clk 00:13:59]} {[%emt 00:00:10]} Nc7 {[%clk 00:07:30]} {[%emt
00:01:39]} 18. Bd6 {[%clk 00:13:16]} {[%emt 00:00:48]} Nb5 {[%clk 00:06:48]}
{[%emt 00:00:47]} 19. Be5 {[%clk 00:10:28]} {[%emt 00:02:53]} Qd7 {[%clk
00:05:43]} {[%emt 00:01:10]} 20. Re1 {[%clk 00:09:52]} {[%emt 00:00:39]} Qd5
{[%clk 00:04:33]} {[%emt 00:01:16]} 21. Ne3 {[%clk 00:09:28]} {[%emt 00:00:29]}
Qd7 {[%clk 00:04:18]} {[%emt 00:00:20]} 22. d5 {[%clk 00:08:52]} {[%emt
00:00:41]} c5 {[%clk 00:03:16]} {[%emt 00:01:06]} 23. Nc4 {[%clk 00:08:16]}
{[%emt 00:00:42]} Qe7 {[%clk 00:02:37]} {[%emt 00:00:43]} 24. dxe6 {[%clk
00:07:42]} {[%emt 00:00:39]} fxe6 {[%clk 00:02:35]} {[%emt 00:00:08]} 25. Bd6
{[%clk 00:07:44]} {[%emt 00:00:03]} Qg5 {[%clk 00:01:27]} {[%emt 00:01:12]} 26.
Qh3 {[%clk 00:07:48]} {[%emt 00:00:01]} Nd4 {[%clk 00:00:54]} {[%emt 00:00:38]}
27. Rxd4 {[%clk 00:07:39]} {[%emt 00:00:13]} cxd4 {[%clk 00:00:53]} {[%emt
00:00:08]} 28. Qxe6+ {[%clk 00:07:43]} Kd8 {[%clk 00:00:53]} {[%emt 00:00:05]}
29. Qe8# {[%clk 00:07:45]} {[%emt 00:00:02]} 1-0

[Event "Open NK Rapid 2025"]
[Site "Helmond, Netherlands"]
[Date "2025.05.03"]
[Round "1.10"]
[White "Hylarides, Charlie Ronald"]
[Black "Cernov, Vadim"]
[Result "0-1"]
[TimeControl "15+5"]
[WhiteFideId "40105822"]
[BlackFideId "1210629"]
[WhiteElo "1774"]
[BlackElo "2320"]

1. d4 {[%clk 00:15:06]} {[%emt 00:00:04]} Nf6 {[%clk 00:15:09]} {[%emt
00:00:02]} 2. Bg5 {[%clk 00:15:07]} {[%emt 00:00:03]} Ne4 {[%clk 00:14:59]}
{[%emt 00:00:15]} 3. Bf4 {[%clk 00:15:00]} {[%emt 00:00:12]} c5 {[%clk
00:14:58]} {[%emt 00:00:06]} 4. d5 {[%clk 00:14:20]} {[%emt 00:00:46]} Qb6
{[%clk 00:14:34]} {[%emt 00:00:29]} 5. Qc1 {[%clk 00:13:48]} {[%emt 00:00:36]}
e6 {[%clk 00:14:10]} {[%emt 00:00:29]} 6. c4 {[%clk 00:13:03]} {[%emt
00:00:51]} g5 {[%clk 00:13:22]} {[%emt 00:00:52]} 7. Be5 {[%clk 00:11:28]}
{[%emt 00:01:41]} f6 {[%clk 00:12:40]} {[%emt 00:00:47]} 8. Bg3 {[%clk
00:10:22]} {[%emt 00:01:11]} h5 {[%clk 00:12:08]} {[%emt 00:00:37]} 9. Nc3
{[%clk 00:07:51]} {[%emt 00:02:35]} Qa5 {[%clk 00:10:16]} {[%emt 00:01:57]} 10.
Qc2 {[%clk 00:06:41]} {[%emt 00:01:16]} f5 {[%clk 00:10:18]} {[%emt 00:00:02]}
11. Be5 {[%clk 00:06:11]} {[%emt 00:00:34]} Rg8 {[%clk 00:10:22]} {[%emt
00:00:02]} 12. f3 {[%clk 00:05:51]} {[%emt 00:00:26]} Nd6 {[%clk 00:10:08]}
{[%emt 00:00:19]} 13. e4 {[%clk 00:04:45]} {[%emt 00:01:11]} Nf7 {[%clk
00:07:13]} {[%emt 00:02:59]} 14. Bxb8 {[%clk 00:03:32]} {[%emt 00:01:18]} Rxb8
{[%clk 00:07:16]} {[%emt 00:00:02]} 15. exf5 {[%clk 00:02:55]} {[%emt
00:00:42]} exf5 {[%clk 00:07:19]} {[%emt 00:00:02]} 16. Qxf5 {[%clk 00:02:39]}
{[%emt 00:00:21]} Bg7 {[%clk 00:07:02]} {[%emt 00:00:22]} 17. Qc2 {[%clk
00:02:05]} {[%emt 00:00:40]} d6 {[%clk 00:06:15]} {[%emt 00:00:52]} 18. Bd3
{[%clk 00:01:29]} {[%emt 00:00:41]} Ne5 {[%clk 00:05:51]} {[%emt 00:00:29]} 19.
Nge2 {[%clk 00:01:11]} {[%emt 00:00:23]} b5 {[%clk 00:04:36]} {[%emt 00:01:20]}
20. cxb5 {[%clk 00:00:50]} {[%emt 00:00:26]} a6 {[%clk 00:04:14]} {[%emt
00:00:27]} 21. O-O {[%clk 00:00:14]} {[%emt 00:00:40]} axb5 {[%clk 00:04:06]}
{[%emt 00:00:14]} 22. Bg6+ {[%clk 00:00:11]} {[%emt 00:00:07]} Kd8 {[%clk
00:03:59]} {[%emt 00:00:12]} 23. a4 {[%clk 00:00:07]} {[%emt 00:00:10]} b4
{[%clk 00:03:52]} {[%emt 00:00:12]} 24. Nb5 {[%clk 00:00:09]} {[%emt 00:00:02]}
Qb6 {[%clk 00:03:44]} {[%emt 00:00:14]} 25. Bxh5 {[%clk 00:00:08]} {[%emt
00:00:06]} c4+ {[%clk 00:03:26]} {[%emt 00:00:23]} 26. Kh1 {[%clk 00:00:12]}
{[%emt 00:00:01]} Rh8 {[%clk 00:02:43]} {[%emt 00:00:48]} 27. Ng3 {[%clk
00:00:06]} {[%emt 00:00:10]} Bd7 {[%clk 00:02:17]} {[%emt 00:00:31]} 28. Qe4
{[%emt 00:00:06]} Kc8 {[%clk 00:01:57]} {[%emt 00:00:24]} 29. Rac1 {[%clk
00:00:08]} {[%emt 00:00:03]} Kb7 {[%clk 00:01:57]} {[%emt 00:00:06]} 30. Rfd1
{[%clk 00:00:07]} {[%emt 00:00:06]} Rbf8 {[%clk 00:01:48]} {[%emt 00:00:13]} 31.
Bg6 {[%clk 00:00:08]} {[%emt 00:00:04]} Rf4 {[%clk 00:01:41]} {[%emt 00:00:13]}
32. Qb1 {[%clk 00:00:11]} {[%emt 00:00:02]} Rxh2+ {[%clk 00:01:33]} {[%emt
00:00:12]} 33. Kxh2 {[%clk 00:00:14]} {[%emt 00:00:03]} Rh4# {[%clk 00:01:29]}
{[%emt 00:00:01]} 0-1

[Event "Open NK Rapid 2025"]
[Site "Helmond, Netherlands"]
[Date "2025.05.03"]
[Round "1.11"]
[White "Sydykov, Bayastan"]
[Black "Katpatal, Akshaj"]
[Result "1/2-1/2"]
[TimeControl "15+5"]
[WhiteFideId "13829610"]
[BlackFideId "1072595"]
[WhiteElo "2297"]
[BlackElo "1772"]

1. e4 {[%clk 00:15:07]} {[%emt 00:00:02]} c6 {[%clk 00:15:09]} {[%emt
00:00:03]} 2. d4 {[%clk 00:15:08]} {[%emt 00:00:03]} d5 {[%clk 00:15:12]}
{[%emt 00:00:02]} 3. Nd2 {[%clk 00:15:10]} {[%emt 00:00:02]} dxe4 {[%clk
00:15:15]} {[%emt 00:00:02]} 4. Nxe4 {[%clk 00:15:14]} {[%emt 00:00:02]} Nf6
{[%clk 00:15:18]} {[%emt 00:00:01]} 5. Nxf6+ {[%clk 00:15:17]} {[%emt
00:00:02]} exf6 {[%clk 00:15:22]} {[%emt 00:00:02]} 6. Be3 {[%clk 00:15:19]}
{[%emt 00:00:03]} Bd6 {[%clk 00:15:25]} {[%emt 00:00:02]} 7. Bd3 {[%clk
00:15:22]} {[%emt 00:00:02]} O-O {[%clk 00:15:26]} {[%emt 00:00:04]} 8. Ne2
{[%clk 00:15:23]} {[%emt 00:00:04]} Be6 {[%clk 00:15:26]} {[%emt 00:00:04]} 9.
O-O {[%clk 00:15:19]} {[%emt 00:00:10]} Nd7 {[%clk 00:15:20]} {[%emt 00:00:11]}
10. c4 {[%clk 00:14:58]} {[%emt 00:00:26]} Qc7 {[%clk 00:15:00]} {[%emt
00:00:25]} 11. h3 {[%clk 00:14:23]} {[%emt 00:00:39]} Rfe8 {[%clk 00:14:35]}
{[%emt 00:00:31]} 12. Rc1 {[%clk 00:14:13]} {[%emt 00:00:15]} Qa5 {[%clk
00:13:27]} {[%emt 00:01:10]} 13. Nc3 {[%clk 00:13:40]} {[%emt 00:00:41]} Nf8
{[%clk 00:13:09]} {[%emt 00:00:20]} 14. a3 {[%clk 00:13:06]} {[%emt 00:00:42]}
Ng6 {[%clk 00:13:04]} {[%emt 00:00:10]} 15. Qd2 {[%clk 00:12:10]} {[%emt
00:01:01]} Rad8 {[%clk 00:13:01]} {[%emt 00:00:07]} 16. b4 {[%clk 00:09:56]}
{[%emt 00:02:19]} Qc7 {[%clk 00:12:40]} {[%emt 00:00:26]} 17. d5 {[%clk
00:09:34]} {[%emt 00:00:28]} Bc8 {[%clk 00:12:28]} {[%emt 00:00:15]} 18. Kh1
{[%clk 00:07:50]} {[%emt 00:01:51]} cxd5 {[%clk 00:11:22]} {[%emt 00:01:11]} 19.
cxd5 {[%clk 00:06:58]} {[%emt 00:00:56]} Qe7 {[%clk 00:11:00]} {[%emt
00:00:25]} 20. Rfe1 {[%clk 00:06:51]} {[%emt 00:00:15]} Qe5 {[%clk 00:10:28]}
{[%emt 00:00:37]} 21. g3 {[%clk 00:02:20]} {[%emt 00:04:36]} Qh5 {[%clk
00:10:14]} {[%emt 00:00:18]} 22. Kg1 {[%clk 00:01:52]} {[%emt 00:00:34]} Bxh3
{[%clk 00:09:55]} {[%emt 00:00:24]} 23. Be2 {[%clk 00:01:36]} {[%emt 00:00:21]}
Bg4 {[%clk 00:09:50]} {[%emt 00:00:09]} 24. Bxg4 {[%clk 00:01:40]} {[%emt
00:00:02]} Qxg4 {[%clk 00:09:53]} {[%emt 00:00:02]} 25. Qd4 {[%clk 00:01:35]}
{[%emt 00:00:10]} Qh3 {[%clk 00:08:35]} {[%emt 00:01:16]} 26. Bd2 {[%clk
00:00:45]} {[%emt 00:01:02]} Ne5 {[%clk 00:07:43]} {[%emt 00:00:57]} 27. Qe4
{[%clk 00:00:47]} {[%emt 00:00:03]} f5 {[%clk 00:06:29]} {[%emt 00:01:19]} 28.
Qg2 {[%clk 00:00:50]} {[%emt 00:00:02]} Qxg2+ {[%clk 00:06:32]} {[%emt
00:00:01]} 29. Kxg2 {[%clk 00:00:55]} h6 {[%clk 00:06:09]} {[%emt 00:00:29]} 30.
Red1 {[%clk 00:00:56]} {[%emt 00:00:05]} Nc4 {[%clk 00:06:08]} {[%emt
00:00:05]} 31. Nb5 {[%clk 00:00:52]} {[%emt 00:00:09]} Nxd2 {[%clk 00:06:04]}
{[%emt 00:00:08]} 32. Rxd2 {[%clk 00:00:55]} {[%emt 00:00:03]} a6 {[%clk
00:06:08]} {[%emt 00:00:01]} 33. Nd4 {[%clk 00:00:57]} {[%emt 00:00:03]} g6
{[%clk 00:06:06]} {[%emt 00:00:06]} 34. Nb3 {[%clk 00:01:00]} {[%emt 00:00:02]}
Rc8 {[%clk 00:05:46]} {[%emt 00:00:25]} 35. Rdc2 {[%clk 00:00:56]} {[%emt
00:00:10]} Rxc2 {[%clk 00:05:29]} {[%emt 00:00:22]} 36. Rxc2 {[%clk 00:01:00]}
Kf8 {[%clk 00:05:14]} {[%emt 00:00:21]} 37. Na5 {[%clk 00:01:04]} {[%emt
00:00:01]} Rb8 {[%clk 00:05:15]} {[%emt 00:00:03]} 38. Kf3 {[%clk 00:01:05]}
{[%emt 00:00:04]} Ke7 {[%clk 00:05:18]} {[%emt 00:00:02]} 39. Ke3 {[%clk
00:01:07]} {[%emt 00:00:04]} Kd7 {[%clk 00:05:22]} {[%emt 00:00:02]} 40. Nc4
{[%clk 00:01:00]} {[%emt 00:00:12]} Re8+ {[%clk 00:05:06]} {[%emt 00:00:21]} 41.
Kd3 {[%clk 00:01:02]} {[%emt 00:00:03]} g5 {[%clk 00:04:58]} {[%emt 00:00:10]}
42. Nb6+ {[%clk 00:01:03]} {[%emt 00:00:06]} Ke7 {[%clk 00:04:58]} {[%emt
00:00:05]} 43. Re2+ {[%clk 00:00:57]} {[%emt 00:00:11]} Kd8 {[%clk 00:04:55]}
{[%emt 00:00:07]} 44. Rc2 {[%clk 00:01:01]} {[%emt 00:00:02]} Bc7 {[%clk
00:04:51]} {[%emt 00:00:08]} 45. Nc4 {[%clk 00:01:05]} {[%emt 00:00:02]} Kd7
{[%clk 00:04:55]} {[%emt 00:00:02]} 46. Ne3 {[%clk 00:01:06]} {[%emt 00:00:04]}
Re5 {[%clk 00:04:44]} {[%emt 00:00:15]} 47. Kd4 {[%clk 00:01:02]} {[%emt
00:00:08]} Re4+ {[%clk 00:04:43]} {[%emt 00:00:06]} 48. Kd3 {[%clk 00:01:04]}
{[%emt 00:00:03]} Re5 {[%clk 00:04:46]} {[%emt 00:00:03]} 49. f4 {[%clk
00:00:39]} {[%emt 00:00:30]} gxf4 {[%clk 00:04:48]} {[%emt 00:00:03]} 50. gxf4
{[%clk 00:00:43]} {[%emt 00:00:02]} Re4 {[%clk 00:04:49]} {[%emt 00:00:02]} 51.
Nxf5 {[%clk 00:00:47]} {[%emt 00:00:02]} Rxf4 {[%clk 00:04:53]} {[%emt
00:00:01]} 52. Nxh6 {[%clk 00:00:50]} {[%emt 00:00:02]} Rf3+ {[%clk 00:04:55]}
{[%emt 00:00:03]} 53. Kc4 {[%clk 00:00:48]} {[%emt 00:00:07]} Rf4+ {[%clk
00:04:47]} {[%emt 00:00:13]} 54. Kb3 {[%clk 00:00:49]} {[%emt 00:00:04]} Rf3+
{[%clk 00:04:49]} {[%emt 00:00:04]} 55. Ka2 {[%clk 00:00:52]} Bd6 {[%clk
00:04:44]} {[%emt 00:00:13]} 56. Ng4 {[%clk 00:00:43]} {[%emt 00:00:11]} a5
{[%clk 00:04:44]} {[%emt 00:00:05]} 57. Rc4 {[%clk 00:00:46]} {[%emt 00:00:02]}
f5 {[%clk 00:04:22]} {[%emt 00:00:25]} 58. Nf6+ {[%clk 00:00:41]} {[%emt
00:00:11]} Ke7 {[%clk 00:04:26]} {[%emt 00:00:02]} 59. Nh5 {[%clk 00:00:45]}
{[%emt 00:00:02]} f4 {[%clk 00:04:21]} {[%emt 00:00:09]} 60. Re4+ {[%clk
00:00:45]} {[%emt 00:00:06]} Kd7 {[%clk 00:04:03]} {[%emt 00:00:21]} 61. Nf6+
{[%clk 00:00:49]} {[%emt 00:00:02]} Kd8 {[%clk 00:04:03]} {[%emt 00:00:05]} 62.
Re8+ {[%clk 00:00:52]} {[%emt 00:00:02]} Kc7 {[%clk 00:04:07]} {[%emt
00:00:02]} 63. Re6 {[%clk 00:00:55]} {[%emt 00:00:01]} Re3 {[%clk 00:03:43]}
{[%emt 00:00:29]} 64. Ne4 {[%clk 00:00:39]} {[%emt 00:00:21]} f3 {[%clk
00:03:37]} {[%emt 00:00:10]} 65. Kb2 {[%clk 00:00:30]} {[%emt 00:00:15]} axb4
{[%clk 00:03:27]} {[%emt 00:00:15]} 66. axb4 {[%clk 00:00:34]} {[%emt
00:00:01]} Bxb4 {[%clk 00:03:22]} {[%emt 00:00:10]} 67. Kc2 {[%clk 00:00:37]}
{[%emt 00:00:02]} f2 {[%clk 00:02:52]} {[%emt 00:00:35]} 68. Nxf2 {[%clk
00:00:41]} {[%emt 00:00:01]} Rxe6 {[%clk 00:02:56]} {[%emt 00:00:01]} 69. dxe6
{[%clk 00:00:44]} {[%emt 00:00:01]} Kd6 {[%clk 00:03:00]} 70. Kb3 {[%clk
00:00:47]} {[%emt 00:00:03]} Bc5 {[%clk 00:02:57]} {[%emt 00:00:07]} 71. Ne4+
{[%clk 00:00:51]} {[%emt 00:00:02]} Kxe6 {[%clk 00:03:01]} {[%emt 00:00:01]} 72.
Nxc5+ {[%clk 00:00:54]} {[%emt 00:00:02]} Kf7 {[%clk 00:03:05]} 73. Nxb7 {[%clk
00:00:54]} {[%emt 00:00:01]} 1/2-1/2

[Event "Open NK Rapid 2025"]
[Site "Helmond, Netherlands"]
[Date "2025.05.03"]
[Round "1.12"]
[White "Kshirsagar, Parth"]
[Black "Cernov, Henrik"]
[Result "0-1"]
[TimeControl "15+5"]
[WhiteFideId "1084020"]
[BlackFideId "16258312"]
[WhiteElo "1772"]
[BlackElo "2291"]

1. d4 {[%clk 00:15:09]} Nf6 {[%clk 00:15:09]} {[%emt 00:00:02]} 2. c4 {[%clk
00:15:13]} {[%emt 00:00:01]} Nc6 {[%clk 00:15:13]} {[%emt 00:00:01]} 3. Nf3
{[%clk 00:15:16]} {[%emt 00:00:02]} e6 {[%clk 00:15:17]} 4. Nc3 {[%clk
00:15:18]} {[%emt 00:00:03]} Bb4 {[%clk 00:15:21]} {[%emt 00:00:01]} 5. a3
{[%clk 00:15:11]} {[%emt 00:00:12]} Bxc3+ {[%clk 00:15:24]} {[%emt 00:00:02]} 6.
bxc3 {[%clk 00:15:15]} {[%emt 00:00:01]} d6 {[%clk 00:15:19]} {[%emt 00:00:11]}
7. d5 {[%clk 00:15:13]} {[%emt 00:00:07]} Ne7 {[%clk 00:15:02]} {[%emt
00:00:21]} 8. Bg5 {[%clk 00:15:04]} {[%emt 00:00:15]} Ng6 {[%clk 00:14:55]}
{[%emt 00:00:12]} 9. e3 {[%clk 00:14:53]} {[%emt 00:00:16]} h6 {[%clk
00:14:51]} {[%emt 00:00:08]} 10. Bxf6 {[%clk 00:14:51]} {[%emt 00:00:08]} Qxf6
{[%clk 00:14:54]} {[%emt 00:00:02]} 11. Qc2 {[%clk 00:14:46]} {[%emt 00:00:09]}
O-O {[%clk 00:14:39]} {[%emt 00:00:21]} 12. Bd3 {[%emt 00:01:02]} Ne5 {[%clk
00:13:45]} 13. Be2 {[%clk 00:13:44]} {[%emt 00:01:08]} Nxf3+ {[%clk 00:12:57]}
{[%emt 00:00:53]} 14. Bxf3 {[%clk 00:13:47]} {[%emt 00:00:02]} e5 {[%clk
00:12:54]} {[%emt 00:00:09]} 15. O-O {[%clk 00:13:24]} {[%emt 00:00:27]} b6
{[%clk 00:12:58]} {[%emt 00:00:02]} 16. a4 {[%clk 00:12:40]} {[%emt 00:00:49]}
a5 {[%clk 00:12:58]} {[%emt 00:00:05]} 17. Rfd1 {[%clk 00:11:52]} {[%emt
00:00:53]} Qg5 {[%clk 00:11:54]} {[%emt 00:01:09]} 18. Kh1 {[%clk 00:10:16]}
{[%emt 00:01:40]} f5 {[%clk 00:11:42]} {[%emt 00:00:18]} 19. e4 {[%clk
00:10:10]} {[%emt 00:00:11]} Qf6 {[%clk 00:10:45]} {[%emt 00:01:02]} 20. exf5
{[%clk 00:07:51]} {[%emt 00:02:24]} Bxf5 {[%clk 00:10:43]} {[%emt 00:00:06]} 21.
Qe2 {[%clk 00:07:52]} {[%emt 00:00:03]} Rae8 {[%clk 00:10:15]} {[%emt
00:00:34]} 22. Rf1 {[%clk 00:07:04]} {[%emt 00:00:53]} e4 {[%clk 00:09:52]}
{[%emt 00:00:29]} 23. Bh5 {[%clk 00:06:13]} {[%emt 00:00:56]} g6 {[%clk
00:09:40]} {[%emt 00:00:17]} 24. Bg4 {[%clk 00:06:08]} {[%emt 00:00:09]} Qxc3
{[%clk 00:09:38]} {[%emt 00:00:08]} 25. Rac1 {[%clk 00:05:40]} {[%emt
00:00:32]} Qf6 {[%clk 00:09:25]} {[%emt 00:00:19]} 26. h3 {[%clk 00:05:13]}
{[%emt 00:00:32]} Qg5 {[%clk 00:08:43]} {[%emt 00:00:46]} 27. Bxf5 {[%clk
00:05:02]} {[%emt 00:00:17]} gxf5 {[%clk 00:08:42]} {[%emt 00:00:06]} 28. Rc3
{[%clk 00:04:36]} {[%emt 00:00:30]} f4 {[%clk 00:08:26]} {[%emt 00:00:22]} 29.
Rb3 {[%clk 00:02:42]} {[%emt 00:01:59]} f3 {[%clk 00:08:04]} {[%emt 00:00:27]}
30. gxf3 {[%clk 00:02:34]} {[%emt 00:00:12]} exf3 {[%clk 00:08:06]} {[%emt
00:00:03]} 31. Qxe8 {[%clk 00:00:58]} {[%emt 00:01:41]} Qg2# {[%clk 00:08:09]}
{[%emt 00:00:03]} 0-1